Workbook

Sheet Sheet1
A1: 湘潭县2022年失业保险一次性留工培训补助公示表（第四批）
A2: 序号 | B2: 单位名称 | C2: 单位类型 | D2: 参保满6个月以上人数 | E2: 补助金额标准500元/人
A3: 1 | B3: 湖南伍子醉实业集团有限公司 | C3: 企业 | D3: 1556 | E3: =D3*500 -> 778000
A4: 2 | B4: 湖南胖哥鑫鸿实业有限公司 | C4: 企业 | D4: 343 | E4: 171500
A5: 3 | B5: 湖南新向维包装有限公司 | C5: 企业 | D5: 314 | E5: 157000
A6: 4 | B6: 湖南珠江啤酒有限公司 | C6: 企业 | D6: 278 | E6: 139000
A7: 5 | B7: 湖南五洲通药业股份有限公司 | C7: 企业 | D7: 271 | E7: 135500
A8: 6 | B8: 湖南飞山奇建筑科技有限公司 | C8: 企业 | D8: 261 | E8: 130500
A9: 7 | B9: 湖南湘水缘长生陵园有限公司湘潭县分公司 | C9: 企业 | D9: 243 | E9: 121500
A10: 8 | B10: 湖南敏锐科技有限公司 | C10: 企业 | D10: 220 | E10: 110000
A11: 9 | B11: 湘潭市电机车厂有限公司 | C11: 企业 | D11: 190 | E11: 95000
A12: 10 | B12: 中国邮政集团有限公司湖南省湘潭县分公司 | C12: 企业 | D12: 176 | E12: 88000
A13: 11 | B13: 湘潭宇诚电子有限公司 | C13: 企业 | D13: 170 | E13: 85000
A14: 12 | B14: 湖南国雅彩印有限公司 | C14: 企业 | D14: 150 | E14: 75000
A15: 13 | B15: 湘潭立华牧业有限公司 | C15: 企业 | D15: 135 | E15: 67500
A16: 14 | B16: 中国农业银行股份有限公司湘潭县支行 | C16: 企业 | D16: 132 | E16: 66000
A17: 15 | B17: 湖南复瑞生物医药技术有限责任公司 | C17: 企业 | D17: 131 | E17: 65500
A18: 16 | B18: 湘潭市电线电缆有限公司 | C18: 企业 | D18: 117 | E18: 58500
A19: 17 | B19: 广州酒家集团利口福（湘潭）食品有限公司 | C19: 企业 | D19: 117 | E19: 58500
A20: 18 | B20: 湖南长乐建材有限公司 | C20: 企业 | D20: 116 | E20: 58000
A21: 19 | B21: 湘潭京湘供水有限责任公司 | C21: 企业 | D21: 103 | E21: 51500
A22: 20 | B22: 湘潭市冶金设备制造有限公司 | C22: 企业 | D22: 93 | E22: 46500
A23: 21 | B23: 康普药业股份有限公司湘潭一笑堂分公司 | C23: 企业 | D23: 91 | E23: 45500
A24: 22 | B24: 湘潭鑫田国际大酒店有限公司 | C24: 企业 | D24: 90 | E24: 45000
A25: 23 | B25: 湘潭海大饲料有限公司 | C25: 企业 | D25: 83 | E25: 41500
A26: 24 | B26: 湘潭县易俗河镇国药店大药号 | C26: 企业 | D26: 80 | E26: 40000
A27: 25 | B27: 湘潭长乐节能科技有限公司 | C27: 企业 | D27: 79 | E27: 39500
A28: 26 | B28: 湘潭北汽佛吉亚汽车系统有限公司 | C28: 企业 | D28: 75 | E28: 37500
A29: 27 | B29: 湘潭县东凌彩印有限公司 | C29: 企业 | D29: 75 | E29: 37500
A30: 28 | B30: 湖南金铠新材料科技股份有限公司 | C30: 企业 | D30: 74 | E30: 37000
A31: 29 | B31: 湘潭炜达机电制造有限公司 | C31: 企业 | D31: 73 | E31: 36500
A32: 30 | B32: 湘潭宏润金属科技有限公司 | C32: 企业 | D32: 73 | E32: 36500
A33: 31 | B33: 湘潭万通投资置业有限公司 | C33: 企业 | D33: 72 | E33: 36000
A34: 32 | B34: 碧桂园生活服务集团股份有限公司湘潭分公司 | C34: 企业 | D34: 72 | E34: 36000
A35: 33 | B35: 可菲生物科技有限公司 | C35: 企业 | D35: 71 | E35: 35500
A36: 34 | B36: 湖南诺迪冷冻设备有限公司 | C36: 企业 | D36: 71 | E36: 35500
A37: 35 | B37: 湘潭信德环保科技有限公司 | C37: 企业 | D37: 67 | E37: 33500
A38: 36 | B38: 湖南中建建科建筑科技有限公司 | C38: 企业 | D38: 63 | E38: 31500
A39: 37 | B39: 湘潭市特种线缆股份有限公司 | C39: 企业 | D39: 63 | E39: 31500
A40: 38 | B40: 湘潭上尚保鲜科技有限公司 | C40: 企业 | D40: 61 | E40: 30500
A41: 39 | B41: 湖南福熙食品有限公司 | C41: 企业 | D41: 59 | E41: 29500
A42: 40 | B42: 中国邮政储蓄银行股份有限公司湘潭县支行 | C42: 企业 | D42: 59 | E42: 29500
A43: 41 | B43: 湘潭新大粉末冶金技术有限公司 | C43: 企业 | D43: 57 | E43: 28500
A44: 42 | B44: 湘潭县中石油昆仑燃气有限公司 | C44: 企业 | D44: 56 | E44: 28000
A45: 43 | B45: 湘潭市嘉鸿包装有限公司 | C45: 企业 | D45: 55 | E45: 27500
A46: 44 | B46: 湘潭丰达铂赛汽车零部件有限公司 | C46: 企业 | D46: 53 | E46: 26500
A47: 45 | B47: 湖南南铜集团有限公司 | C47: 企业 | D47: 53 | E47: 26500
A48: 46 | B48: 湘潭北斗汽车销售服务有限公司 | C48: 企业 | D48: 53 | E48: 26500
A49: 47 | B49: 湖南省烟草公司湘潭市公司湘潭县分公司 | C49: 企业 | D49: 52 | E49: 26000
A50: 48 | B50: 上海农村商业银行股份有限公司湘潭县支行 | C50: 企业 | D50: 52 | E50: 26000
A51: 49 | B51: 湖南傲派自动化设备有限公司 | C51: 企业 | D51: 51 | E51: 25500
A52: 50 | B52: 湘潭三金特种玻璃有限责任公司 | C52: 企业 | D52: 48 | E52: 24000
A53: 51 | B53: 湖南新五丰股份有限公司动物营养技术湘潭分公司 | C53: 企业 | D53: 48 | E53: 24000
A54: 52 | B54: 湖南客伦全屋定制有限公司 | C54: 企业 | D54: 46 | E54: 23000
A55: 53 | B55: 湘潭弘茂湘莲产业发展有限责任公司 | C55: 企业 | D55: 46 | E55: 23000
A56: 54 | B56: 湖南杰萃生物技术有限公司 | C56: 企业 | D56: 43 | E56: 21500
A57: 55 | B57: 湖南力威液压设备股份有限公司 | C57: 企业 | D57: 41 | E57: 20500
A58: 56 | B58: 湖南雍和物流有限公司 | C58: 企业 | D58: 41 | E58: 20500
A59: 57 | B59: 城投(湘潭)制水有限公司 | C59: 企业 | D59: 41 | E59: 20500
A60: 58 | B60: 湖南西康尼克新材料有限公司 | C60: 企业 | D60: 41 | E60: 20500
A61: 59 | B61: 湖南瑞升自动化设备有限公司 | C61: 企业 | D61: 41 | E61: 20500
A62: 60 | B62: 艾地盟动物营养(湘潭)有限公司 | C62: 企业 | D62: 41 | E62: 20500
A63: 61 | B63: 湖南飞欧特新材料有限公司 | C63: 企业 | D63: 40 | E63: 20000
A64: 62 | B64: 湘潭熙源建材有限公司 | C64: 企业 | D64: 38 | E64: 19000
A65: 63 | B65: 资兴市益豚生态农业有限公司湘潭分公司 | C65: 企业 | D65: 38 | E65: 19000
A66: 64 | B66: 湖南瓦力能源科技有限公司 | C66: 企业 | D66: 37 | E66: 18500
A67: 65 | B67: 湘潭天元物业管理有限公司湘潭县分公司 | C67: 企业 | D67: 36 | E67: =D67*500 -> 18000
A68: 66 | B68: 湖南常友环保科技有限公司 | C68: 企业 | D68: 36 | E68: 18000
A69: 67 | B69: 湖南安廷物业管理有限公司 | C69: 企业 | D69: 36 | E69: 18000
A70: 68 | B70: 湖南省新华书店有限责任公司湘潭县分公司 | C70: 企业 | D70: 35 | E70: 17500
A71: 69 | B71: 湖南万通建设集团有限公司 | C71: 企业 | D71: 34 | E71: 17000
A72: 70 | B72: 湖南金风食品有限责任公司 | C72: 企业 | D72: 34 | E72: 17000
A73: 71 | B73: 湘潭潭建佳程混凝土有限公司 | C73: 企业 | D73: 34 | E73: 17000
A74: 72 | B74: 湖南玖鑫工程设备有限公司 | C74: 企业 | D74: 33 | E74: 16500
A75: 73 | B75: 湖南汇特焊材科技有限公司 | C75: 企业 | D75: 32 | E75: 16000
A76: 74 | B76: 湘潭何氏名匠装饰设计工程有限公司 | C76: 企业 | D76: 32 | E76: 16000
A77: 75 | B77: 湖南佳盛项目管理有限公司 | C77: 企业 | D77: 32 | E77: 16000
A78: 76 | B78: 湖南湘锐交通工程有限公司 | C78: 企业 | D78: 31 | E78: 15500
A79: 77 | B79: 湖南微草生物科技有限公司 | C79: 企业 | D79: 31 | E79: 15500
A80: 78 | B80: 湖南道生新材料有限公司 | C80: 企业 | D80: 30 | E80: 15000
A81: 79 | B81: 湖南东方管桩有限公司 | C81: 企业 | D81: 30 | E81: 15000
A82: 80 | B82: 千里码数据服务有限公司 | C82: 企业 | D82: 30 | E82: 15000
A83: 81 | B83: 湖南农顺生物科技有限公司 | C83: 企业 | D83: 29 | E83: 14500
A84: 82 | B84: 湖南傲华饲料有限公司 | C84: 企业 | D84: 29 | E84: 14500
A85: 83 | B85: 湖南普卡科技制造有限公司 | C85: 企业 | D85: 29 | E85: 14500
A86: 84 | B86: 湖南神隆华绿肥业有限公司 | C86: 企业 | D86: 29 | E86: 14500
A87: 85 | B87: 湘潭东升电气制造有限公司 | C87: 企业 | D87: 29 | E87: 14500
A88: 86 | B88: 湖南斯百通智水系统有限公司 | C88: 企业 | D88: 29 | E88: 14500
A89: 87 | B89: 湖南金典物业管理有限公司湘潭县分公司 | C89: 企业 | D89: 28 | E89: 14000
A90: 88 | B90: 湘潭县易俗河长江宾馆 | C90: 企业 | D90: 28 | E90: 14000
A91: 89 | B91: 湘潭天捷硬质材料有限公司 | C91: 企业 | D91: 28 | E91: 14000
A92: 90 | B92: 湘潭宏硕汽车部件有限公司 | C92: 企业 | D92: 27 | E92: 13500
A93: 91 | B93: 湘潭南方电机车制造有限公司 | C93: 企业 | D93: 26 | E93: 13000
A94: 92 | B94: 湘潭县淼泉口腔医院有限公司 | C94: 企业 | D94: 26 | E94: 13000
A95: 93 | B95: 湖南湘潭湘淮村镇银行股份有限公司 | C95: 企业 | D95: 26 | E95: 13000
A96: 94 | B96: 湘潭蓝天气体有限公司 | C96: 企业 | D96: 26 | E96: 13000
A97: 95 | B97: 山东喜君康医药集团湘潭有限公司 | C97: 企业 | D97: 25 | E97: 12500
A98: 96 | B98: 湘潭恒源金属制品有限公司 | C98: 企业 | D98: 25 | E98: 12500
A99: 97 | B99: 湖南南托造型材料有限公司 | C99: 企业 | D99: 25 | E99: 12500
A100: 98 | B100: 湖南建湘工程建设有限公司 | C100: 企业 | D100: 24 | E100: 12000
A101: 99 | B101: 湘潭四达电力设备安装工程有限公司 | C101: 企业 | D101: 24 | E101: 12000
A102: 100 | B102: 湘潭铸宇材料科技有限公司 | C102: 企业 | D102: 24 | E102: 12000
A103: 101 | B103: 湘潭县建设投资有限公司 | C103: 企业 | D103: 23 | E103: 11500
A104: 102 | B104: 湖南万通物业管理有限公司 | C104: 企业 | D104: 23 | E104: 11500
A105: 103 | B105: 湖南沃地生态肥业有限公司 | C105: 企业 | D105: 23 | E105: 11500
A106: 104 | B106: 湘潭安定精神病医院有限公司 | C106: 企业 | D106: 23 | E106: 11500
A107: 105 | B107: 湘潭珠华大为机械制造有限公司 | C107: 企业 | D107: 22 | E107: 11000
A108: 106 | B108: 湖南银钻特种变压器有限公司 | C108: 企业 | D108: 22 | E108: 11000
A109: 107 | B109: 湖南九宇新材料有限公司 | C109: 企业 | D109: 22 | E109: 11000
A110: 108 | B110: 湘潭莲乡实业集团有限责任公司 | C110: 企业 | D110: 22 | E110: 11000
A111: 109 | B111: 湘潭县华南加油站 | C111: 企业 | D111: 21 | E111: 10500
A112: 110 | B112: 湖南康宁达医疗科技股份有限公司 | C112: 企业 | D112: 21 | E112: 10500
A113: 111 | B113: 湘潭县海龙机动车检测有限公司 | C113: 企业 | D113: 21 | E113: 10500
A114: 112 | B114: 湖南大地包装有限公司 | C114: 企业 | D114: 21 | E114: 10500
A115: 113 | B115: 湘潭靖通汽车配件有限公司 | C115: 企业 | D115: 21 | E115: 10500
A116: 114 | B116: 湘潭润玉酒店管理有限公司 | C116: 企业 | D116: 21 | E116: 10500
A117: 115 | B117: 湖南银远电气有限公司 | C117: 企业 | D117: 21 | E117: 10500
A118: 116 | B118: 湖南信诺颜料科技有限公司 | C118: 企业 | D118: 20 | E118: 10000
A119: 117 | B119: 湘潭市银汉设备制造有限公司 | C119: 企业 | D119: 20 | E119: 10000
A120: 118 | B120: 湘潭县青珊艺术培训学校有限公司 | C120: 企业 | D120: 20 | E120: 10000
A121: 119 | B121: 湖南力神新材料科技有限公司 | C121: 企业 | D121: 20 | E121: 10000
A122: 120 | B122: 湘潭市华光机械制造有限公司 | C122: 企业 | D122: 20 | E122: 10000
A123: 121 | B123: 湖南智辰农业科技有限公司 | C123: 企业 | D123: 19 | E123: 9500
A124: 122 | B124: 湘潭县顺业污水处理有限公司 | C124: 企业 | D124: 19 | E124: 9500
A125: 123 | B125: 湖南南电电机有限公司 | C125: 企业 | D125: 19 | E125: 9500
A126: 124 | B126: 湖南涓江置业有限公司 | C126: 企业 | D126: 19 | E126: 9500
A127: 125 | B127: 湖南锦恒电力物资有限责任公司 | C127: 企业 | D127: 19 | E127: 9500
A128: 126 | B128: 湖南省多乐鲜益科技有限公司 | C128: 企业 | D128: 19 | E128: 9500
A129: 127 | B129: 湘潭县康大工贸有限责任公司 | C129: 企业 | D129: 18 | E129: 9000
A130: 128 | B130: 湖南杉爱食品有限公司 | C130: 企业 | D130: 18 | E130: 9000
A131: 129 | B131: 湖南宏洲锦龙型材有限公司 | C131: 企业 | D131: 18 | E131: =D131*500 -> 9000
A132: 130 | B132: 湖南祥豪新材料有限公司 | C132: 企业 | D132: 18 | E132: 9000
A133: 131 | B133: 湘潭华夏锌钢科技有限公司 | C133: 企业 | D133: 18 | E133: 9000
A134: 132 | B134: 湖南中成科技发展有限公司 | C134: 企业 | D134: 17 | E134: 8500
A135: 133 | B135: 湘潭金莉子食品科技有限公司 | C135: 企业 | D135: 17 | E135: 8500
A136: 134 | B136: 湘潭广和机械有限公司 | C136: 企业 | D136: 17 | E136: 8500
A137: 135 | B137: 湘潭九鼎金属材料有限公司 | C137: 企业 | D137: 17 | E137: 8500
A138: 136 | B138: 湖南烯瑞自动化设备有限公司 | C138: 企业 | D138: 17 | E138: 8500
A139: 137 | B139: 湘潭弘鑫彩印有限公司 | C139: 企业 | D139: 17 | E139: 8500
A140: 138 | B140: 湖南天骐成建设工程有限公司 | C140: 企业 | D140: 17 | E140: 8500
A141: 139 | B141: 湘潭县银凤医院 | C141: 企业 | D141: 17 | E141: 8500
A142: 140 | B142: 湖南易通机动车检测有限公司 | C142: 企业 | D142: 17 | E142: 8500
A143: 141 | B143: 中国农业发展银行湘潭县支行 | C143: 企业 | D143: 16 | E143: 8000
A144: 142 | B144: 湘潭爱心美医院有限公司 | C144: 企业 | D144: 16 | E144: 8000
A145: 143 | B145: 湖南仁仁洁环境清洁科技有限公司湘潭县分公司 | C145: 企业 | D145: 16 | E145: 8000
A146: 144 | B146: 湘潭億特玻璃有限责任公司 | C146: 企业 | D146: 16 | E146: 8000
A147: 145 | B147: 湖南志宇建设工程有限公司 | C147: 企业 | D147: 16 | E147: 8000
A148: 146 | B148: 湖南诺伯特高温设备股份有限公司 | C148: 企业 | D148: 16 | E148: 8000
A149: 147 | B149: 湘潭县公路与桥梁建设有限公司 | C149: 企业 | D149: 16 | E149: 8000
A150: 148 | B150: 湘潭县浩翔机动车检测有限公司 | C150: 企业 | D150: 16 | E150: 8000
A151: 149 | B151: 湘潭嘉乐置业有限公司 | C151: 企业 | D151: 15 | E151: 7500
A152: 150 | B152: 湖南华绿生态农业发展有限公司 | C152: 企业 | D152: 15 | E152: 7500
A153: 151 | B153: 湖南天元建设有限公司湘潭县分公司 | C153: 企业 | D153: 15 | E153: 7500
A154: 152 | B154: 湖南科普森电缆材料有限公司 | C154: 企业 | D154: 15 | E154: 7500
A155: 153 | B155: 湘潭红燕化工有限公司 | C155: 企业 | D155: 15 | E155: 7500
A156: 154 | B156: 湖南省鸿京能源有限公司 | C156: 企业 | D156: 15 | E156: 7500
A157: 155 | B157: 湘潭海威盛世科技有限公司 | C157: 企业 | D157: 15 | E157: 7500
A158: 156 | B158: 湘潭弘达能源有限公司 | C158: 企业 | D158: 15 | E158: 7500
A159: 157 | B159: 湘潭腾云炉料有限公司 | C159: 企业 | D159: 15 | E159: 7500
A160: 158 | B160: 湘潭大雷特种玻璃有限责任公司 | C160: 企业 | D160: 15 | E160: 7500
A161: 159 | B161: 湖南省湘易嘉业建设有限公司 | C161: 企业 | D161: 15 | E161: 7500
A162: 160 | B162: 湖南柏屹创新园区发展有限公司 | C162: 企业 | D162: 14 | E162: 7000
A163: 161 | B163: 湘潭县湘海新材料科技有限公司 | C163: 企业 | D163: 14 | E163: 7000
A164: 162 | B164: 北京中农大动物保健品集团湘潭兽药厂 | C164: 企业 | D164: 14 | E164: 7000
A165: 163 | B165: 湖南皓驰环保科技有限公司 | C165: 企业 | D165: 14 | E165: 7000
A166: 164 | B166: 湘潭颐而康鑫凯保健有限公司 | C166: 企业 | D166: 14 | E166: 7000
A167: 165 | B167: 湘潭县朝辉硅砂有限责任公司 | C167: 企业 | D167: 14 | E167: 7000
A168: 166 | B168: 湖南嘉逸环保设备开发有限公司 | C168: 企业 | D168: 14 | E168: 7000
A169: 167 | B169: 湖南圣雅凯生物科技有限公司 | C169: 企业 | D169: 14 | E169: 7000
A170: 168 | B170: 湘潭海昌文化旅游发展有限公司 | C170: 企业 | D170: 14 | E170: 7000
A171: 169 | B171: 湖南碧泉潭生态资源开发有限公司 | C171: 企业 | D171: 14 | E171: 7000
A172: 170 | B172: 湘潭县湘旺建设工程质量检测有限公司 | C172: 企业 | D172: 13 | E172: 6500
A173: 171 | B173: 湘潭县兴泰物业管理有限公司 | C173: 企业 | D173: 13 | E173: 6500
A174: 172 | B174: 湘潭佳程建材有限公司 | C174: 企业 | D174: 13 | E174: 6500
A175: 173 | B175: 湖南湘真测绘服务有限公司 | C175: 企业 | D175: 13 | E175: 6500
A176: 174 | B176: 湖南环宇新材料有限公司 | C176: 企业 | D176: 13 | E176: 6500
A177: 175 | B177: 湖南德智置业有限公司 | C177: 企业 | D177: 13 | E177: 6500
A178: 176 | B178: 湘潭客伦速装装饰工程有限责任公司 | C178: 企业 | D178: 13 | E178: 6500
A179: 177 | B179: 湘潭大田宇机车配件制造有限公司 | C179: 企业 | D179: 13 | E179: 6500
A180: 178 | B180: 湘潭聚森清洁能源供热有限公司 | C180: 企业 | D180: 13 | E180: 6500
A181: 179 | B181: 湘潭宏涌兴汽车配件有限公司 | C181: 企业 | D181: 13 | E181: 6500
A182: 180 | B182: 湘潭旺泰幕墙装饰有限公司 | C182: 企业 | D182: 13 | E182: 6500
A183: 181 | B183: 湖南味途供应链管理有限责任公司 | C183: 企业 | D183: 12 | E183: 6000
A184: 182 | B184: 湖南协成电子技术有限公司 | C184: 企业 | D184: 12 | E184: 6000
A185: 183 | B185: 湖南诚意菲斯特科技有限公司 | C185: 企业 | D185: 12 | E185: 6000
A186: 184 | B186: 湖南省工业防腐保温安装有限公司 | C186: 企业 | D186: 12 | E186: 6000
A187: 185 | B187: 湖南省裕生祥置业有限公司 | C187: 企业 | D187: 12 | E187: 6000
A188: 186 | B188: 湖南千里码模具有限公司 | C188: 企业 | D188: 12 | E188: 6000
A189: 187 | B189: 湖南建广建设工程有限公司 | C189: 企业 | D189: 12 | E189: 6000
A190: 188 | B190: 湖南绿邦环保设备科技有限公司 | C190: 企业 | D190: 12 | E190: 6000
A191: 189 | B191: 湖南佬子兴科技发展有限公司 | C191: 企业 | D191: 12 | E191: 6000
A192: 190 | B192: 湖南辉诚机械制造有限公司 | C192: 企业 | D192: 12 | E192: 6000
A193: 191 | B193: 湘潭恒加液压设备有限公司 | C193: 企业 | D193: 12 | E193: 6000
A194: 192 | B194: 湖南健坤环保工程有限公司 | C194: 企业 | D194: 11 | E194: 5500
A195: 193 | B195: 湘潭永邦海泡石科技有限公司 | C195: 企业 | D195: 11 | E195: =D195*500 -> 5500
A196: 194 | B196: 湖南涓江鞋业有限公司 | C196: 企业 | D196: 11 | E196: 5500
A197: 195 | B197: 湖南孚胜金属新材料有限公司 | C197: 企业 | D197: 11 | E197: 5500
A198: 196 | B198: 湘潭中港建设有限公司 | C198: 企业 | D198: 11 | E198: 5500
A199: 197 | B199: 湘潭博越装饰有限公司 | C199: 企业 | D199: 11 | E199: 5500
A200: 198 | B200: 湖南世纪永盛建设工程有限公司 | C200: 企业 | D200: 11 | E200: 5500
... 319 more rows
